[Event "Titled Tuesday Blitz June 28 Early 2022"]
[White "Jones, Gawain C B"]
[Black "Orlov, Georgi"]
[WhiteFideId "409561"]
[BlackFideId "2011271"]
[WhiteElo "2657"]
[BlackElo "2572"]
[Result "1-0"]
[Round "08"]
[TimeControl "180+1"]
[Date "2022.06.28"]
[WhiteClock "0:00:03"]
[BlackClock "0:00:04"]

1. Nf3 {[%clk 0:03:00]}  Nf6 {[%clk 0:02:59]} 2. c4 {[%clk 0:03:00]}  e6 {[%clk 0:02:59]} 3. b3 {[%clk 0:03:00]}  d5 {[%clk 0:02:57]} 4. Bb2 {[%clk 0:03:01]}  Be7 {[%clk 0:02:57]} 5. g3 {[%clk 0:03:00]}  O-O {[%clk 0:02:57]} 6. Bg2 {[%clk 0:03:00]}  b6 {[%clk 0:02:56]} 7. O-O {[%clk 0:03:00]}  Bb7 {[%clk 0:02:56]} 8. d3 {[%clk 0:02:59]}  c5 {[%clk 0:02:51]} 9. e3 {[%clk 0:02:59]}  Nc6 {[%clk 0:02:48]} 10. a3 {[%clk 0:02:54]}  a6 {[%clk 0:02:47]} 11. Ne5 {[%clk 0:02:48]}  Nxe5 {[%clk 0:02:45]} 12. Bxe5 {[%clk 0:02:49]}  Nd7 {[%clk 0:02:45]} 13. Bb2 {[%clk 0:02:49]}  Bf6 {[%clk 0:02:45]} 14. Qc2 {[%clk 0:02:49]}  Qc7 {[%clk 0:02:42]} 15. Nc3 {[%clk 0:02:47]}  dxc4 {[%clk 0:02:21]} 16. bxc4 {[%clk 0:02:43]}  Bxg2 {[%clk 0:02:19]} 17. Kxg2 {[%clk 0:02:43]}  Qc6+ {[%clk 0:02:19]} 18. f3 {[%clk 0:02:34]}  Rfd8 {[%clk 0:02:15]} 19. Ne4 {[%clk 0:02:29]}  Bxb2 {[%clk 0:02:12]} 20. Qxb2 {[%clk 0:02:30]}  f5 {[%clk 0:02:12]} 21. Nf2 {[%clk 0:02:22]}  b5 {[%clk 0:01:55]} 22. Rfc1 {[%clk 0:02:15]}  Rab8 {[%clk 0:01:50]} 23. cxb5 {[%clk 0:02:11]}  axb5 {[%clk 0:01:49]} 24. d4 {[%clk 0:02:04]}  c4 {[%clk 0:01:46]} 25. Nd3 {[%clk 0:02:03]}  Qd6 {[%clk 0:01:40]} 26. Nb4 {[%clk 0:02:01]}  Nb6 {[%clk 0:01:34]} 27. Re1 {[%clk 0:01:50]}  Nd5 {[%clk 0:01:29]} 28. Rab1 {[%clk 0:01:43]}  Rdc8 {[%clk 0:01:29]} 29. Nxd5 {[%clk 0:01:39]}  exd5 {[%clk 0:01:25]} 30. Qc2 {[%clk 0:01:33]}  g6 {[%clk 0:01:02]} 31. e4 {[%clk 0:01:28]}  fxe4 {[%clk 0:00:59]} 32. fxe4 {[%clk 0:01:28]}  dxe4 {[%clk 0:00:47]} 33. Qxe4 {[%clk 0:01:25]}  c3 {[%clk 0:00:47]} 34. Rbc1 {[%clk 0:01:12]}  Rc4 {[%clk 0:00:30]} 35. Qf3 {[%clk 0:00:39]}  Rf8 {[%clk 0:00:26]} 36. Qe3 {[%clk 0:00:39]}  Rxd4 {[%clk 0:00:19]} 37. Rxc3 {[%clk 0:00:29]}  Qd5+ {[%clk 0:00:17]} 38. Kg1 {[%clk 0:00:27]}  Rd2 {[%clk 0:00:15]} 39. Qe6+ {[%clk 0:00:15]}  Qxe6 {[%clk 0:00:15]} 40. Rxe6 {[%clk 0:00:16]}  Rff2 {[%clk 0:00:12]} 41. Rc7 {[%clk 0:00:03]}  Rg2+ {[%clk 0:00:10]} 42. Kf1 {[%clk 0:00:03]}  Rdf2+ {[%clk 0:00:08]} 43. Ke1 {[%clk 0:00:03]}  Rf8 {[%clk 0:00:06]} 44. Re2 {[%clk 0:00:02]}  Rg1+ {[%clk 0:00:04]} 45. Kd2 {[%clk 0:00:02]}  Rd8+ {[%clk 0:00:04]} 46. Kc2 {[%clk 0:00:03]} 1-0


[Site "https://www.chess.com"]

[Event "Titled Tuesday Blitz June 28 Early 2022"]
[White "Kanyamarala, Trisha"]
[Black "Dixit, Arun"]
[WhiteFideId "45004722"]
[BlackFideId "30937671"]
[WhiteElo "2134"]
[BlackElo "2390"]
[Result "1/2-1/2"]
[Round "08"]
[TimeControl "180+1"]
[Date "2022.06.28"]
[WhiteClock "0:01:37"]
[BlackClock "0:00:45"]

1. d4 {[%clk 0:02:58]}  Nf6 {[%clk 0:02:58]} 2. c4 {[%clk 0:02:58]}  e6 {[%clk 0:02:58]} 3. Nc3 {[%clk 0:02:58]}  Bb4 {[%clk 0:02:58]} 4. e3 {[%clk 0:02:57]}  c5 {[%clk 0:02:53]} 5. d5 {[%clk 0:02:53]}  b5 {[%clk 0:02:49]} 6. a3 {[%clk 0:02:50]}  Bxc3+ {[%clk 0:02:35]} 7. bxc3 {[%clk 0:02:51]}  bxc4 {[%clk 0:02:35]} 8. Bxc4 {[%clk 0:02:49]}  O-O {[%clk 0:02:26]} 9. Ne2 {[%clk 0:02:47]}  Bb7 {[%clk 0:02:20]} 10. Nf4 {[%clk 0:02:47]}  g5 {[%clk 0:02:04]} 11. Nh5 {[%clk 0:02:41]}  exd5 {[%clk 0:01:53]} 12. Bd3 {[%clk 0:02:19]}  Ne4 {[%clk 0:01:43]} 13. Bxe4 {[%clk 0:02:02]}  dxe4 {[%clk 0:00:57]} 14. Qd6 {[%clk 0:02:00]}  Qb6 {[%clk 0:00:50]} 15. Qe5 {[%clk 0:01:58]}  f6 {[%clk 0:00:45]} 16. Qe7 {[%clk 0:01:53]}  Rf7 {[%clk 0:00:44]} 17. Qe8+ {[%clk 0:01:46]}  Rf8 {[%clk 0:00:44]} 18. Qe7 {[%clk 0:01:43]}  Rf7 {[%clk 0:00:44]} 19. Qe8+ {[%clk 0:01:41]}  Rf8 {[%clk 0:00:45]} 20. Qe7 {[%clk 0:01:37]} 1/2-1/2


[Site "https://www.chess.com"]

[Event "Titled Tuesday Blitz June 28 Early 2022"]
[White "Karaev, Seit-Amet"]
[Black "Large, Peter G"]
[WhiteFideId "4169549"]
[BlackFideId "400866"]
[WhiteElo "2272"]
[BlackElo "2064"]
[Result "1-0"]
[Round "08"]
[TimeControl "180+1"]
[Date "2022.06.28"]
[WhiteClock "0:01:04"]
[BlackClock "0:00:28"]

1. e4 {[%clk 0:02:56]}  e6 {[%clk 0:02:58]} 2. d4 {[%clk 0:02:56]}  d5 {[%clk 0:02:59]} 3. e5 {[%clk 0:02:57]}  Ne7 {[%clk 0:02:58]} 4. c3 {[%clk 0:02:58]}  b6 {[%clk 0:02:58]} 5. Nf3 {[%clk 0:02:58]}  Qd7 {[%clk 0:02:59]} 6. Bd3 {[%clk 0:02:58]}  Ba6 {[%clk 0:02:58]} 7. O-O {[%clk 0:02:59]}  Bxd3 {[%clk 0:02:59]} 8. Qxd3 {[%clk 0:03:00]}  c5 {[%clk 0:02:59]} 9. a4 {[%clk 0:03:00]}  Nbc6 {[%clk 0:02:59]} 10. Na3 {[%clk 0:03:00]}  h5 {[%clk 0:02:58]} 11. Nb5 {[%clk 0:03:00]}  Nf5 {[%clk 0:02:58]} 12. Bg5 {[%clk 0:02:59]}  a6 {[%clk 0:02:56]} 13. Na3 {[%clk 0:02:56]}  cxd4 {[%clk 0:02:22]} 14. cxd4 {[%clk 0:02:57]}  Nb4 {[%clk 0:02:21]} 15. Qd2 {[%clk 0:02:57]}  Qxa4 {[%clk 0:02:02]} 16. Rfc1 {[%clk 0:02:40]}  Qd7 {[%clk 0:02:01]} 17. h3 {[%clk 0:02:37]}  h4 {[%clk 0:01:59]} 18. Rc3 {[%clk 0:02:31]}  Be7 {[%clk 0:01:59]} 19. Rac1 {[%clk 0:02:28]}  O-O {[%clk 0:01:21]} 20. Rc7 {[%clk 0:02:26]}  Qd8 {[%clk 0:01:21]} 21. Bxe7 {[%clk 0:02:24]}  Nxe7 {[%clk 0:01:21]} 22. Qxb4 {[%clk 0:02:25]}  Nf5 {[%clk 0:01:18]} 23. Qxb6 {[%clk 0:02:10]}  Rb8 {[%clk 0:01:17]} 24. Qxa6 {[%clk 0:02:10]}  Rxb2 {[%clk 0:01:17]} 25. Nb5 {[%clk 0:02:09]}  Qb8 {[%clk 0:01:10]} 26. Nd6 {[%clk 0:02:07]}  Rb1 {[%clk 0:00:55]} 27. Nxf5 {[%clk 0:02:05]}  exf5 {[%clk 0:00:53]} 28. Nxh4 {[%clk 0:01:43]}  Qxc7 {[%clk 0:00:46]} 29. Rxb1 {[%clk 0:01:40]}  Qc2 {[%clk 0:00:47]} 30. Qb5 {[%clk 0:01:36]}  Qe4 {[%clk 0:00:45]} 31. Nf3 {[%clk 0:01:35]}  Rc8 {[%clk 0:00:44]} 32. Re1 {[%clk 0:01:35]}  Qf4 {[%clk 0:00:40]} 33. Qxd5 {[%clk 0:01:35]}  Rc1 {[%clk 0:00:40]} 34. Qa5 {[%clk 0:01:07]}  Rc2 {[%clk 0:00:29]} 35. Qd8+ {[%clk 0:01:03]}  Kh7 {[%clk 0:00:28]} 36. Qh4+ {[%clk 0:01:04]} 1-0


[Site "https://www.chess.com"]

[Event "Titled Tuesday Blitz June 28 Early 2022"]
[White "Kopczynski, Michal"]
[Black "Adewumi, Tanitoluwa"]
[WhiteFideId "1124200"]
[BlackFideId "30966396"]
[WhiteElo "2235"]
[BlackElo "2678"]
[Result "1-0"]
[Round "08"]
[TimeControl "180+1"]
[Date "2022.06.28"]
[WhiteClock "0:00:13"]
[BlackClock "0:00:08"]

1. e4 {[%clk 0:02:58]}  c5 {[%clk 0:02:57]} 2. d4 {[%clk 0:02:58]}  cxd4 {[%clk 0:02:50]} 3. c3 {[%clk 0:02:59]}  dxc3 {[%clk 0:02:51]} 4. Nxc3 {[%clk 0:02:59]}  e6 {[%clk 0:02:50]} 5. f4 {[%clk 0:02:59]}  Nc6 {[%clk 0:02:49]} 6. Nf3 {[%clk 0:02:59]}  Bb4 {[%clk 0:02:49]} 7. Bd3 {[%clk 0:02:59]}  Nge7 {[%clk 0:02:50]} 8. O-O {[%clk 0:02:59]}  O-O {[%clk 0:02:48]} 9. Kh1 {[%clk 0:02:59]}  d6 {[%clk 0:02:42]} 10. Qe1 {[%clk 0:02:58]}  Bxc3 {[%clk 0:02:39]} 11. bxc3 {[%clk 0:02:53]}  e5 {[%clk 0:02:34]} 12. f5 {[%clk 0:02:51]}  f6 {[%clk 0:02:26]} 13. Bc4+ {[%clk 0:02:42]}  d5 {[%clk 0:02:17]} 14. exd5 {[%clk 0:02:40]}  Na5 {[%clk 0:02:18]} 15. Bd3 {[%clk 0:02:32]}  Qxd5 {[%clk 0:01:58]} 16. Be4 {[%clk 0:02:18]}  Qc4 {[%clk 0:01:56]} 17. Ba3 {[%clk 0:02:15]}  Bxf5 {[%clk 0:01:26]} 18. Nd2 {[%clk 0:01:44]}  Qe6 {[%clk 0:00:51]} 19. Bxe7 {[%clk 0:01:41]}  Qxe7 {[%clk 0:00:29]} 20. Rxf5 {[%clk 0:01:40]}  g6 {[%clk 0:00:30]} 21. Rf1 {[%clk 0:01:39]}  f5 {[%clk 0:00:30]} 22. Bd5+ {[%clk 0:01:37]}  Kg7 {[%clk 0:00:30]} 23. Nb3 {[%clk 0:01:34]}  Nc6 {[%clk 0:00:27]} 24. Bxc6 {[%clk 0:01:31]}  bxc6 {[%clk 0:00:28]} 25. Rd1 {[%clk 0:01:30]}  Rad8 {[%clk 0:00:27]} 26. Qe3 {[%clk 0:01:28]}  e4 {[%clk 0:00:26]} 27. h3 {[%clk 0:01:21]}  Qh4 {[%clk 0:00:17]} 28. Qxa7+ {[%clk 0:01:19]}  Rf7 {[%clk 0:00:13]} 29. Qb6 {[%clk 0:01:09]}  Rxd1 {[%clk 0:00:12]} 30. Rxd1 {[%clk 0:01:10]}  Qh5 {[%clk 0:00:08]} 31. Qd4+ {[%clk 0:01:07]}  Kg8 {[%clk 0:00:08]} 32. Nc5 {[%clk 0:01:05]}  g5 {[%clk 0:00:04]} 33. Ne6 {[%clk 0:01:00]}  h6 {[%clk 0:00:05]} 34. Rf1 {[%clk 0:00:51]}  g4 {[%clk 0:00:03]} 35. Qd8+ {[%clk 0:00:47]}  Kh7 {[%clk 0:00:03]} 36. Nf4 {[%clk 0:00:42]}  Qg5 {[%clk 0:00:03]} 37. Qe8 {[%clk 0:00:39]}  Re7 {[%clk 0:00:04]} 38. Qxc6 {[%clk 0:00:34]}  e3 {[%clk 0:00:04]} 39. Re1 {[%clk 0:00:27]}  Qxf4 {[%clk 0:00:04]} 40. Qf6 {[%clk 0:00:22]}  Qg5 {[%clk 0:00:04]} 41. Qxg5 {[%clk 0:00:21]}  hxg5 {[%clk 0:00:05]} 42. hxg4 {[%clk 0:00:21]}  f4 {[%clk 0:00:05]} 43. Kg1 {[%clk 0:00:19]}  Ra7 {[%clk 0:00:04]} 44. Re2 {[%clk 0:00:19]}  Rc7 {[%clk 0:00:04]} 45. Rc2 {[%clk 0:00:18]}  Kg6 {[%clk 0:00:05]} 46. Kf1 {[%clk 0:00:18]}  Kf6 {[%clk 0:00:06]} 47. Ke2 {[%clk 0:00:19]}  Ke5 {[%clk 0:00:07]} 48. Kf3 {[%clk 0:00:19]}  Rd7 {[%clk 0:00:05]} 49. Re2 {[%clk 0:00:14]}  Rd3 {[%clk 0:00:05]} 50. Rc2 {[%clk 0:00:14]}  Rd1 {[%clk 0:00:05]} 51. c4 {[%clk 0:00:13]}  Rf1+ {[%clk 0:00:05]} 52. Ke2 {[%clk 0:00:13]}  Rf2+ {[%clk 0:00:06]} 53. Kd3 {[%clk 0:00:14]}  Rxc2 {[%clk 0:00:05]} 54. Kxc2 {[%clk 0:00:15]}  Kd4 {[%clk 0:00:05]} 55. Kd1 {[%clk 0:00:05]}  Kxc4 {[%clk 0:00:06]} 56. Ke2 {[%clk 0:00:05]}  Kb4 {[%clk 0:00:03]} 57. g3 {[%clk 0:00:05]}  Kc5 {[%clk 0:00:01]} 58. gxf4 {[%clk 0:00:05]}  gxf4 {[%clk 0:00:02]} 59. g5 {[%clk 0:00:05]}  Kd5 {[%clk 0:00:03]} 60. g6 {[%clk 0:00:05]}  Ke6 {[%clk 0:00:02]} 61. a4 {[%clk 0:00:06]}  Kf6 {[%clk 0:00:02]} 62. a5 {[%clk 0:00:06]}  Kxg6 {[%clk 0:00:02]} 63. a6 {[%clk 0:00:07]}  Kf5 {[%clk 0:00:03]} 64. Kf3 {[%clk 0:00:07]}  e2 {[%clk 0:00:03]} 65. Kxe2 {[%clk 0:00:07]}  Ke5 {[%clk 0:00:03]} 66. a7 {[%clk 0:00:08]}  Kd6 {[%clk 0:00:04]} 67. a8=Q {[%clk 0:00:08]}  Kc7 {[%clk 0:00:05]} 68. Qf3 {[%clk 0:00:09]}  Kb6 {[%clk 0:00:05]} 69. Kd3 {[%clk 0:00:09]}  Kc5 {[%clk 0:00:05]} 70. Ke4 {[%clk 0:00:10]}  Kd6 {[%clk 0:00:05]} 71. Kxf4 {[%clk 0:00:11]}  Ke7 {[%clk 0:00:06]} 72. Qe4+ {[%clk 0:00:12]}  Kf7 {[%clk 0:00:07]} 73. Qc6 {[%clk 0:00:12]}  Kg7 {[%clk 0:00:07]} 74. Kg5 {[%clk 0:00:12]}  Kg8 {[%clk 0:00:08]} 75. Qd7 {[%clk 0:00:13]}  Kf8 {[%clk 0:00:08]} 76. Kg6 {[%clk 0:00:13]}  Kg8 {[%clk 0:00:08]} 77. Qd8# {[%clk 0:00:13]} 1-0


[Site "https://www.chess.com"]

[Event "Titled Tuesday Blitz June 28 Early 2022"]
[White "Kozlov, Oleg"]
[Black "Molina, Roberto Junio Brito"]
[WhiteFideId "4104544"]
[BlackFideId "2109450"]
[WhiteElo "2132"]
[BlackElo "2432"]
[Result "0-1"]
[Round "08"]
[TimeControl "180+1"]
[Date "2022.06.28"]
[WhiteClock "0:00:10"]
[BlackClock "0:00:11"]

1. d4 {[%clk 0:02:59]}  d5 {[%clk 0:02:59]} 2. c4 {[%clk 0:02:59]}  c6 {[%clk 0:02:59]} 3. Nf3 {[%clk 0:02:59]}  Nf6 {[%clk 0:02:58]} 4. g3 {[%clk 0:02:59]}  dxc4 {[%clk 0:02:58]} 5. Bg2 {[%clk 0:02:59]}  b5 {[%clk 0:02:58]} 6. Ne5 {[%clk 0:02:56]}  Bb7 {[%clk 0:02:58]} 7. a4 {[%clk 0:02:55]}  a6 {[%clk 0:02:58]} 8. b3 {[%clk 0:02:56]}  cxb3 {[%clk 0:02:57]} 9. Qxb3 {[%clk 0:02:57]}  e6 {[%clk 0:02:57]} 10. Bb2 {[%clk 0:02:57]}  Be7 {[%clk 0:02:51]} 11. O-O {[%clk 0:02:56]}  O-O {[%clk 0:02:51]} 12. Nd2 {[%clk 0:02:55]}  Nfd7 {[%clk 0:02:49]} 13. Nd3 {[%clk 0:02:49]}  Qb6 {[%clk 0:02:47]} 14. Rfc1 {[%clk 0:02:48]}  Rc8 {[%clk 0:02:24]} 15. Ne4 {[%clk 0:02:18]}  a5 {[%clk 0:02:05]} 16. Nec5 {[%clk 0:02:15]}  Nxc5 {[%clk 0:02:03]} 17. Nxc5 {[%clk 0:02:13]}  Bxc5 {[%clk 0:02:01]} 18. dxc5 {[%clk 0:02:07]}  Qc7 {[%clk 0:01:59]} 19. axb5 {[%clk 0:01:45]}  cxb5 {[%clk 0:01:59]} 20. Qxb5 {[%clk 0:01:45]}  Bxg2 {[%clk 0:01:58]} 21. Kxg2 {[%clk 0:01:46]}  Nc6 {[%clk 0:01:54]} 22. Bc3 {[%clk 0:01:40]}  Rcb8 {[%clk 0:01:52]} 23. Qc4 {[%clk 0:01:38]}  Qb7 {[%clk 0:01:47]} 24. f3 {[%clk 0:01:37]}  Qb3 {[%clk 0:01:45]} 25. Qe4 {[%clk 0:01:35]}  Qd5 {[%clk 0:01:39]} 26. Qg4 {[%clk 0:01:35]}  e5 {[%clk 0:01:33]} 27. Be1 {[%clk 0:01:04]}  Rb2 {[%clk 0:01:23]} 28. Kf1 {[%clk 0:01:02]}  h6 {[%clk 0:01:03]} 29. Bc3 {[%clk 0:00:57]}  Rb3 {[%clk 0:01:00]} 30. Be1 {[%clk 0:00:45]}  Nd4 {[%clk 0:00:54]} 31. Rxa5 {[%clk 0:00:37]}  Rxa5 {[%clk 0:00:52]} 32. Bxa5 {[%clk 0:00:38]}  f5 {[%clk 0:00:50]} 33. Qh5 {[%clk 0:00:31]}  Rb2 {[%clk 0:00:35]} 34. Bc3 {[%clk 0:00:24]}  Qc4 {[%clk 0:00:26]} 35. Bxb2 {[%clk 0:00:06]}  Qxe2+ {[%clk 0:00:25]} 36. Kg1 {[%clk 0:00:07]}  Qxb2 {[%clk 0:00:18]} 37. Rd1 {[%clk 0:00:04]}  Qc2 {[%clk 0:00:11]} 38. Rf1 {[%clk 0:00:03]}  Qxc5 {[%clk 0:00:11]} 39. Qe8+ {[%clk 0:00:03]}  Kh7 {[%clk 0:00:11]} 40. Kh1 {[%clk 0:00:04]}  Qd5 {[%clk 0:00:11]} 41. Kg2 {[%clk 0:00:04]}  Ne6 {[%clk 0:00:10]} 42. Rf2 {[%clk 0:00:04]}  e4 {[%clk 0:00:10]} 43. fxe4 {[%clk 0:00:04]}  Qxe4+ {[%clk 0:00:11]} 44. Kg1 {[%clk 0:00:04]}  Qe1+ {[%clk 0:00:10]} 45. Rf1 {[%clk 0:00:04]}  Qe3+ {[%clk 0:00:09]} 46. Kh1 {[%clk 0:00:05]}  Qe4+ {[%clk 0:00:08]} 47. Kg1 {[%clk 0:00:05]}  Qd4+ {[%clk 0:00:08]} 48. Rf2 {[%clk 0:00:05]}  Ng5 {[%clk 0:00:09]} 49. Qe1 {[%clk 0:00:04]}  Nh3+ {[%clk 0:00:09]} 50. Kg2 {[%clk 0:00:05]}  Nxf2 {[%clk 0:00:08]} 51. Qxf2 {[%clk 0:00:05]}  Qxf2+ {[%clk 0:00:07]} 52. Kxf2 {[%clk 0:00:06]}  Kg6 {[%clk 0:00:07]} 53. Kf3 {[%clk 0:00:07]}  Kf6 {[%clk 0:00:08]} 54. Kf4 {[%clk 0:00:07]}  g5+ {[%clk 0:00:08]} 55. Kf3 {[%clk 0:00:08]}  Ke5 {[%clk 0:00:08]} 56. h4 {[%clk 0:00:09]}  Kd4 {[%clk 0:00:08]} 57. hxg5 {[%clk 0:00:09]}  hxg5 {[%clk 0:00:09]} 58. Kf2 {[%clk 0:00:09]}  Ke4 {[%clk 0:00:09]} 59. Ke2 {[%clk 0:00:09]}  g4 {[%clk 0:00:09]} 60. Kf2 {[%clk 0:00:10]}  Kd3 {[%clk 0:00:09]} 61. Kf1 {[%clk 0:00:09]}  Ke3 {[%clk 0:00:10]} 62. Kg2 {[%clk 0:00:10]}  Ke2 {[%clk 0:00:10]} 63. Kh1 {[%clk 0:00:09]}  Kf3 {[%clk 0:00:09]} 64. Kh2 {[%clk 0:00:10]}  Kf2 {[%clk 0:00:10]} 65. Kh1 {[%clk 0:00:10]}  Kxg3 {[%clk 0:00:11]} 0-1


[Site "https://www.chess.com"]

[Event "Titled Tuesday Blitz June 28 Early 2022"]
[White "Magallanes, Rey Jomar"]
[Black "Kanyamarala, Tarun"]
[WhiteFideId "5205948"]
[BlackFideId "45004714"]
[WhiteElo "2172"]
[BlackElo "2219"]
[Result "0-1"]
[Round "08"]
[TimeControl "180+1"]
[Date "2022.06.28"]
[WhiteClock "0:00:05"]
[BlackClock "0:01:15"]

1. e4 {[%clk 0:03:00]}  e6 {[%clk 0:02:56]} 2. Nf3 {[%clk 0:03:00]}  d5 {[%clk 0:02:56]} 3. exd5 {[%clk 0:02:54]}  exd5 {[%clk 0:02:56]} 4. d4 {[%clk 0:02:55]}  Bd6 {[%clk 0:02:53]} 5. Nc3 {[%clk 0:02:56]}  c6 {[%clk 0:02:53]} 6. Be3 {[%clk 0:02:55]}  Ne7 {[%clk 0:02:53]} 7. Bd3 {[%clk 0:02:54]}  Bf5 {[%clk 0:02:53]} 8. Bxf5 {[%clk 0:02:53]}  Nxf5 {[%clk 0:02:52]} 9. O-O {[%clk 0:02:53]}  O-O {[%clk 0:02:48]} 10. Qd3 {[%clk 0:02:51]}  Nxe3 {[%clk 0:02:41]} 11. fxe3 {[%clk 0:02:52]}  Bb4 {[%clk 0:02:38]} 12. e4 {[%clk 0:02:51]}  Bxc3 {[%clk 0:02:37]} 13. bxc3 {[%clk 0:02:50]}  dxe4 {[%clk 0:02:37]} 14. Qxe4 {[%clk 0:02:49]}  Nd7 {[%clk 0:02:38]} 15. Rae1 {[%clk 0:02:45]}  Qa5 {[%clk 0:02:37]} 16. Ne5 {[%clk 0:02:43]}  Nxe5 {[%clk 0:02:37]} 17. dxe5 {[%clk 0:02:41]}  Qxc3 {[%clk 0:02:37]} 18. e6 {[%clk 0:02:38]}  Qc5+ {[%clk 0:02:31]} 19. Kh1 {[%clk 0:02:35]}  fxe6 {[%clk 0:02:32]} 20. Qxe6+ {[%clk 0:02:33]}  Kh8 {[%clk 0:02:32]} 21. Rf7 {[%clk 0:02:18]}  Rxf7 {[%clk 0:02:29]} 22. Qxf7 {[%clk 0:02:14]}  h6 {[%clk 0:02:18]} 23. Re8+ {[%clk 0:02:00]}  Rxe8 {[%clk 0:02:17]} 24. Qxe8+ {[%clk 0:02:00]}  Kh7 {[%clk 0:02:18]} 25. Qe4+ {[%clk 0:02:01]}  Kg8 {[%clk 0:02:16]} 26. Qe8+ {[%clk 0:02:00]}  Qf8 {[%clk 0:02:17]} 27. Qe6+ {[%clk 0:02:00]}  Qf7 {[%clk 0:02:17]} 28. Qc8+ {[%clk 0:01:57]}  Kh7 {[%clk 0:02:18]} 29. h3 {[%clk 0:01:56]}  Qe7 {[%clk 0:01:55]} 30. Qf5+ {[%clk 0:01:52]}  g6 {[%clk 0:01:52]} 31. Qf3 {[%clk 0:01:47]}  c5 {[%clk 0:01:51]} 32. c4 {[%clk 0:01:38]}  b6 {[%clk 0:01:51]} 33. Qd5 {[%clk 0:01:31]}  Kg7 {[%clk 0:01:50]} 34. a4 {[%clk 0:01:23]}  Kf6 {[%clk 0:01:49]} 35. Qf3+ {[%clk 0:01:22]}  Kg7 {[%clk 0:01:44]} 36. Qc3+ {[%clk 0:01:20]}  Qf6 {[%clk 0:01:43]} 37. Qd3 {[%clk 0:01:18]}  Qe6 {[%clk 0:01:43]} 38. Qc3+ {[%clk 0:01:17]}  Kf7 {[%clk 0:01:43]} 39. Qf3+ {[%clk 0:01:16]}  Ke7 {[%clk 0:01:41]} 40. Qb7+ {[%clk 0:01:15]}  Qd7 {[%clk 0:01:41]} 41. Qe4+ {[%clk 0:01:14]}  Kd8 {[%clk 0:01:42]} 42. Qxg6 {[%clk 0:01:12]}  Qxa4 {[%clk 0:01:42]} 43. Qf6+ {[%clk 0:01:08]}  Kc7 {[%clk 0:01:41]} 44. Qe5+ {[%clk 0:01:06]}  Kb7 {[%clk 0:01:41]} 45. Qd5+ {[%clk 0:00:55]}  Ka6 {[%clk 0:01:38]} 46. Kh2 {[%clk 0:00:50]}  Qe8 {[%clk 0:01:32]} 47. Qd3 {[%clk 0:00:46]}  Qe5+ {[%clk 0:01:31]} 48. Kh1 {[%clk 0:00:45]}  Qa1+ {[%clk 0:01:29]} 49. Kh2 {[%clk 0:00:44]}  Qd4 {[%clk 0:01:28]} 50. Qa3+ {[%clk 0:00:42]}  Kb7 {[%clk 0:01:28]} 51. Qf3+ {[%clk 0:00:43]}  Kc7 {[%clk 0:01:25]} 52. Qf7+ {[%clk 0:00:42]}  Qd7 {[%clk 0:01:25]} 53. Qf3 {[%clk 0:00:38]}  a6 {[%clk 0:01:22]} 54. Kh1 {[%clk 0:00:38]}  Kb8 {[%clk 0:01:19]} 55. Qf4+ {[%clk 0:00:38]}  Ka7 {[%clk 0:01:18]} 56. Qe3 {[%clk 0:00:33]}  Qd1+ {[%clk 0:01:15]} 57. Kh2 {[%clk 0:00:33]}  Qd6+ {[%clk 0:01:16]} 58. Kh1 {[%clk 0:00:33]}  b5 {[%clk 0:01:17]} 59. cxb5 {[%clk 0:00:30]}  axb5 {[%clk 0:01:18]} 60. Qa3+ {[%clk 0:00:29]}  Kb6 {[%clk 0:01:18]} 61. Qe3 {[%clk 0:00:20]}  b4 {[%clk 0:01:17]} 62. Qe8 {[%clk 0:00:19]}  c4 {[%clk 0:01:17]} 63. Qe3+ {[%clk 0:00:18]}  Kb5 {[%clk 0:01:16]} 64. Qa7 {[%clk 0:00:16]}  b3 {[%clk 0:01:16]} 65. Qb7+ {[%clk 0:00:16]}  Ka4 {[%clk 0:01:16]} 66. Qa7+ {[%clk 0:00:16]}  Kb4 {[%clk 0:01:16]} 67. Qb7+ {[%clk 0:00:16]}  Kc3 {[%clk 0:01:17]} 68. Qf3+ {[%clk 0:00:16]}  Kb2 {[%clk 0:01:17]} 69. Qf2+ {[%clk 0:00:15]}  Kc3 {[%clk 0:01:16]} 70. Qf3+ {[%clk 0:00:15]}  Qd3 {[%clk 0:01:15]} 71. Qf6+ {[%clk 0:00:15]}  Kc2 {[%clk 0:01:16]} 72. Qf2+ {[%clk 0:00:15]}  Kb1 {[%clk 0:01:16]} 73. Qe1+ {[%clk 0:00:14]}  Ka2 {[%clk 0:01:16]} 74. Qa5+ {[%clk 0:00:13]}  Kb2 {[%clk 0:01:13]} 75. Qe1 {[%clk 0:00:14]}  c3 {[%clk 0:01:12]} 76. Qf2+ {[%clk 0:00:13]}  Qd2 {[%clk 0:01:12]} 77. Qa7 {[%clk 0:00:13]}  c2 {[%clk 0:01:11]} 78. Qg7+ {[%clk 0:00:12]}  Qc3 {[%clk 0:01:11]} 79. Qxh6 {[%clk 0:00:11]}  c1=Q+ {[%clk 0:01:11]} 80. Qxc1+ {[%clk 0:00:12]}  Qxc1+ {[%clk 0:01:11]} 81. Kh2 {[%clk 0:00:13]}  Qf4+ {[%clk 0:01:12]} 82. g3 {[%clk 0:00:12]}  Qf2+ {[%clk 0:01:12]} 83. Kh1 {[%clk 0:00:12]}  Kc3 {[%clk 0:01:13]} 84. h4 {[%clk 0:00:05]}  b2 {[%clk 0:01:14]} 85. h5 {[%clk 0:00:05]}  b1=Q# {[%clk 0:01:15]} 0-1


[Site "https://www.chess.com"]